DEPARTMENT FAMILY,ENTITY,DATE,EXPENSE TYPE,EXPENSE AREA,SUPPLIER,TRANSACTION NUMBER,AMOUNT
IMAGING DEPARTMENT,IMAGING DEPARTMENT,13/02/2023,SOFTWARE MAINTENANCE,CLINICAL SUPPORT SERVICES,CLINISYS SOLUTIONS LTD,0000609748,"165,727.78"
ONCOLOGY SLA - UHB,ONCOLOGY SLA - UHB,01/02/2023,REFERRED TESTS RECHARGES,CANCER SERVICES CARE GROUP,UNIVERSITY HOSPITAL BIRMINGHAM NHS FT,0010030072,"-284,578.83"
ENDOSCOPY UNIT,ENDOSCOPY UNIT,06/02/2023,MED & SURG DISPOSABLES,GASTRO CARE GROUP,KEYMED (MED & IND EQUIP) LTD,0010031726,"31,350.07"
ENDOSCOPY UNIT,ENDOSCOPY UNIT,06/02/2023,MED & SURG DISPOSABLES,GASTRO CARE GROUP,KEYMED (MED & IND EQUIP) LTD,0010031938,"1,537,908.25"
ENDOSCOPY UNIT,ENDOSCOPY UNIT,06/02/2023,MED & SURG DISPOSABLES,GASTRO CARE GROUP,KEYMED (MED & IND EQUIP) LTD,0010032098,"146,349.10"
CAP A&E BUILD,CAP A&E BUILD,20/02/2023,PURCHASE OF TANGIBLE ASSET,CAPITAL,LINET UK LTD,0010032224,"25,704.00"
ONCOLOGY SLA - UHB,ONCOLOGY SLA - UHB,01/02/2023,REFERRED TESTS RECHARGES,CANCER SERVICES CARE GROUP,UNIVERSITY HOSPITAL BIRMINGHAM NHS FT,0015020437,"284,578.83"
FP10 GASTROENTEROLOGY,FP10 GASTROENTEROLOGY,13/02/2023,FP10S,GASTRO CARE GROUP,PRESCRIPTION PRICING AUTHORITY,0015021098,"4,308.19"
FP10 DIABETES & ENDOCRINOLOGY,FP10 DIABETES & ENDOCRINOLOGY,13/02/2023,FP10S,LONG TERM CONDITIONS CARE GRP,PRESCRIPTION PRICING AUTHORITY,0015021098,"5,029.93"
FP10  DERMATOLOGY,FP10  DERMATOLOGY,13/02/2023,FP10S,LONG TERM CONDITIONS CARE GRP,PRESCRIPTION PRICING AUTHORITY,0015021098,"6,063.46"
FP10 CARDIOLOGY,FP10 CARDIOLOGY,13/02/2023,FP10S,CARDIOLOGY CARE GROUP,PRESCRIPTION PRICING AUTHORITY,0015021098,"1,964.52"
MEDICAL ONCOLOGY SNR MED STAFF,CANCER SERVICES CG MEDICAL,13/02/2023,FP10S,CANCER SERVICES CARE GROUP,PRESCRIPTION PRICING AUTHORITY,0015021098,567.46
PALLIATIVE CARE SENIOR MEDICS,PALLIATIVE/END OF LIFE CARE,13/02/2023,FP10S,DIRECTOR OF NURSING,PRESCRIPTION PRICING AUTHORITY,0015021098,231.86
FP10 RESPIRATORY CARE,FP10 RESPIRATORY CARE,13/02/2023,FP10S,ELDERLY CARE GROUP,PRESCRIPTION PRICING AUTHORITY,0015021098,355.44
FP10 ELDERLY CARE,FP10 ELDERLY CARE,13/02/2023,FP10S,ELDERLY CARE GROUP,PRESCRIPTION PRICING AUTHORITY,0015021098,276.51
PHARMACY DEPARTMENT,PHARMACY DEPARTMENT,13/02/2023,PRESCRIPTION CHARGES,LIFESTYLES AND DISCH SUPT,PRESCRIPTION PRICING AUTHORITY,0015021098,1.04
FP10 UROLOGY,FP10 UROLOGY,13/02/2023,FP10S,GENERAL SURGERY CARE GROUP,PRESCRIPTION PRICING AUTHORITY,0015021098,"2,545.06"
FP10 OPHTHALMOLOGY,FP10 OPHTHALMOLOGY,13/02/2023,FP10S,HEAD AND NECK CARE GROUP,PRESCRIPTION PRICING AUTHORITY,0015021098,"2,171.08"
FP10 ENT,FP10 ENT,13/02/2023,FP10S,HEAD AND NECK CARE GROUP,PRESCRIPTION PRICING AUTHORITY,0015021098,"1,532.76"
FP10 GENERAL SURGERY,FP10 GENERAL SURGERY,13/02/2023,FP10S,GENERAL SURGERY CARE GROUP,PRESCRIPTION PRICING AUTHORITY,0015021098,"32,031.53"
FP10 BREAST SURGERY,FP10 BREAST SURGERY,13/02/2023,FP10S,GENERAL SURGERY CARE GROUP,PRESCRIPTION PRICING AUTHORITY,0015021098,"1,201.64"
FP10 COLORECTAL SURGERY,FP10 COLORECTAL SURGERY,13/02/2023,FP10S,GENERAL SURGERY CARE GROUP,PRESCRIPTION PRICING AUTHORITY,0015021098,"3,340.15"
FP10 ORAL SURGERY,FP10 ORAL SURGERY,13/02/2023,FP10S,HEAD AND NECK CARE GROUP,PRESCRIPTION PRICING AUTHORITY,0015021098,"1,295.90"
CLINICAL HAEM FP10,CLINICAL HAEM FP10,13/02/2023,FP10S,CLINICAL SUPPORT SERVICES,PRESCRIPTION PRICING AUTHORITY,0015021098,"1,134.62"
VACANT COMMUNITY CON,VACANT COMMUNITY CON,13/02/2023,FP10S,CHILDRENS AND FAMILY SERVICES,PRESCRIPTION PRICING AUTHORITY,0015021098,"1,172.54"
OBS/GYNAE WARD DRUGS,OBS/GYNAE WARD DRUGS,13/02/2023,FP10S,WOMENS SERVICES,PRESCRIPTION PRICING AUTHORITY,0015021098,"8,640.45"
FP10 PAIN CLINIC,FP10 PAIN CLINIC,13/02/2023,FP10S,THEATRE CRIT CARE AND ANAES,PRESCRIPTION PRICING AUTHORITY,0015021098,8.41
FP10 T&O,FP10 T&O,13/02/2023,FP10S,MUSCULOSKELETAL SERVICES CARE,PRESCRIPTION PRICING AUTHORITY,0015021098,197.21
FP10 RHEUMATOLOGY,FP10 RHEUMATOLOGY,13/02/2023,FP10S,MUSCULOSKELETAL SERVICES CARE,PRESCRIPTION PRICING AUTHORITY,0015021098,"4,586.61"
FP10  GENERAL MEDICINE,FP10  GENERAL MEDICINE,13/02/2023,FP10S,SPECIALTY MEDICINE CARE GROUP,PRESCRIPTION PRICING AUTHORITY,0015021098,"1,461.50"
FP10 NEUROLOGY,FP10 NEUROLOGY,13/02/2023,FP10S,ELDERLY CARE GROUP,PRESCRIPTION PRICING AUTHORITY,0015021098,51.49
AMBULANCES,AMBULANCES,06/02/2023,OTHER TRANSPORT COSTS,LIFESTYLES AND DISCH SUPT,WEST MIDLANDS AMBULANCE SERVICE,0015021179,"101,365.24"
FP10 GASTROENTEROLOGY,FP10 GASTROENTEROLOGY,13/02/2023,FP10S,GASTRO CARE GROUP,PRESCRIPTION PRICING AUTHORITY,0015021204,"5,327.43"
FP10 DIABETES & ENDOCRINOLOGY,FP10 DIABETES & ENDOCRINOLOGY,13/02/2023,FP10S,LONG TERM CONDITIONS CARE GRP,PRESCRIPTION PRICING AUTHORITY,0015021204,"8,393.43"
FP10  DERMATOLOGY,FP10  DERMATOLOGY,13/02/2023,FP10S,LONG TERM CONDITIONS CARE GRP,PRESCRIPTION PRICING AUTHORITY,0015021204,"3,133.21"
FP10 CARDIOLOGY,FP10 CARDIOLOGY,13/02/2023,FP10S,CARDIOLOGY CARE GROUP,PRESCRIPTION PRICING AUTHORITY,0015021204,"5,430.99"
MEDICAL ONCOLOGY SNR MED STAFF,CANCER SERVICES CG MEDICAL,13/02/2023,FP10S,CANCER SERVICES CARE GROUP,PRESCRIPTION PRICING AUTHORITY,0015021204,678.08
PALLIATIVE CARE SENIOR MEDICS,PALLIATIVE/END OF LIFE CARE,13/02/2023,FP10S,DIRECTOR OF NURSING,PRESCRIPTION PRICING AUTHORITY,0015021204,624.25
FP10 RESPIRATORY CARE,FP10 RESPIRATORY CARE,13/02/2023,FP10S,ELDERLY CARE GROUP,PRESCRIPTION PRICING AUTHORITY,0015021204,955.81
FP10 ELDERLY CARE,FP10 ELDERLY CARE,13/02/2023,FP10S,ELDERLY CARE GROUP,PRESCRIPTION PRICING AUTHORITY,0015021204,334.18
FP10 UROLOGY,FP10 UROLOGY,13/02/2023,FP10S,GENERAL SURGERY CARE GROUP,PRESCRIPTION PRICING AUTHORITY,0015021204,"2,543.10"
FP10 OPHTHALMOLOGY,FP10 OPHTHALMOLOGY,13/02/2023,FP10S,HEAD AND NECK CARE GROUP,PRESCRIPTION PRICING AUTHORITY,0015021204,"1,681.71"
FP10 ENT,FP10 ENT,13/02/2023,FP10S,HEAD AND NECK CARE GROUP,PRESCRIPTION PRICING AUTHORITY,0015021204,"1,937.12"
FP10 GENERAL SURGERY,FP10 GENERAL SURGERY,13/02/2023,FP10S,GENERAL SURGERY CARE GROUP,PRESCRIPTION PRICING AUTHORITY,0015021204,"24,947.30"
FP10 BREAST SURGERY,FP10 BREAST SURGERY,13/02/2023,FP10S,GENERAL SURGERY CARE GROUP,PRESCRIPTION PRICING AUTHORITY,0015021204,291.51
FP10 COLORECTAL SURGERY,FP10 COLORECTAL SURGERY,13/02/2023,FP10S,GENERAL SURGERY CARE GROUP,PRESCRIPTION PRICING AUTHORITY,0015021204,"1,045.11"
FP10 ORAL SURGERY,FP10 ORAL SURGERY,13/02/2023,FP10S,HEAD AND NECK CARE GROUP,PRESCRIPTION PRICING AUTHORITY,0015021204,508.43
CLINICAL HAEM FP10,CLINICAL HAEM FP10,13/02/2023,FP10S,CLINICAL SUPPORT SERVICES,PRESCRIPTION PRICING AUTHORITY,0015021204,"1,130.92"
VACANT COMMUNITY CON,VACANT COMMUNITY CON,13/02/2023,FP10S,CHILDRENS AND FAMILY SERVICES,PRESCRIPTION PRICING AUTHORITY,0015021204,608.11
OBS/GYNAE WARD DRUGS,OBS/GYNAE WARD DRUGS,13/02/2023,FP10S,WOMENS SERVICES,PRESCRIPTION PRICING AUTHORITY,0015021204,"6,652.24"
FP10 T&O,FP10 T&O,13/02/2023,FP10S,MUSCULOSKELETAL SERVICES CARE,PRESCRIPTION PRICING AUTHORITY,0015021204,"1,002.58"
FP10 RHEUMATOLOGY,FP10 RHEUMATOLOGY,13/02/2023,FP10S,MUSCULOSKELETAL SERVICES CARE,PRESCRIPTION PRICING AUTHORITY,0015021204,"3,180.65"
FP10  GENERAL MEDICINE,FP10  GENERAL MEDICINE,13/02/2023,FP10S,SPECIALTY MEDICINE CARE GROUP,PRESCRIPTION PRICING AUTHORITY,0015021204,"1,124.40"
FP10 NEUROLOGY,FP10 NEUROLOGY,13/02/2023,FP10S,ELDERLY CARE GROUP,PRESCRIPTION PRICING AUTHORITY,0015021204,79.10
FP10 ELDERLY PARKINSON'S,FP10 ELDERLY PARKINSON'S,13/02/2023,FP10S,ELDERLY CARE GROUP,PRESCRIPTION PRICING AUTHORITY,0015021204,27.15
BLOOD TRANSFUSION SERVICE,BLOOD TRANSFUSION SERVICE,01/02/2023,BLOOD TRANSFUSION SERVICE,CLINICAL SUPPORT SERVICES,NHS BLOOD AND TRANSPLANT,0015021215,"60,562.32"
PUBLIC HEALTH TRAINEES,PUBLIC HEALTH TRAINEES,27/02/2023,SPECIALISED REGISTRARS,HR & TRAINING,ST HELENS&KNOWSLEY TEACHING HOSPITALS,0015021243,"-38,335.35"
PROCUREMENT,PROCUREMENT,13/02/2023,EXP NONHC OUTSYS TRUST,FINANCE DIRECTOR,UNIVERSITY HOSPITALS OF NORTH MIDLANDS,0015021283,"27,298.00"
PROCUREMENT,PROCUREMENT,13/02/2023,EXP NONHC OUTSYS TRUST,FINANCE DIRECTOR,UNIVERSITY HOSPITALS OF NORTH MIDLANDS,0015021284,"72,402.25"
BLACK COUNTRY ALLIANCE,BLACK COUNTRY ALLIANCE,13/02/2023,SERVICES-NHS BODIES-NON-HCARE,CHIEF EXECUTIVE,UNIVERSITY HOSPITALS OF NORTH MIDLANDS,0015021285,"72,402.25"
FP10 GASTROENTEROLOGY,FP10 GASTROENTEROLOGY,13/02/2023,FP10S,GASTRO CARE GROUP,PRESCRIPTION PRICING AUTHORITY,0015021296,"6,802.60"
FP10 DIABETES & ENDOCRINOLOGY,FP10 DIABETES & ENDOCRINOLOGY,13/02/2023,FP10S,LONG TERM CONDITIONS CARE GRP,PRESCRIPTION PRICING AUTHORITY,0015021296,"6,402.45"
FP10 CARDIOLOGY,FP10 CARDIOLOGY,13/02/2023,FP10S,CARDIOLOGY CARE GROUP,PRESCRIPTION PRICING AUTHORITY,0015021296,"3,505.82"
FP10 UROLOGY,FP10 UROLOGY,13/02/2023,FP10S,GENERAL SURGERY CARE GROUP,PRESCRIPTION PRICING AUTHORITY,0015021296,"2,896.58"
FP10 GENERAL SURGERY,FP10 GENERAL SURGERY,13/02/2023,FP10S,GENERAL SURGERY CARE GROUP,PRESCRIPTION PRICING AUTHORITY,0015021296,"52,837.27"
FP10 COLORECTAL SURGERY,FP10 COLORECTAL SURGERY,13/02/2023,FP10S,GENERAL SURGERY CARE GROUP,PRESCRIPTION PRICING AUTHORITY,0015021296,"1,574.43"
OBS/GYNAE WARD DRUGS,OBS/GYNAE WARD DRUGS,13/02/2023,FP10S,WOMENS SERVICES,PRESCRIPTION PRICING AUTHORITY,0015021296,"8,410.28"
FP10 RHEUMATOLOGY,FP10 RHEUMATOLOGY,13/02/2023,FP10S,MUSCULOSKELETAL SERVICES CARE,PRESCRIPTION PRICING AUTHORITY,0015021296,"4,476.85"
FP10  GENERAL MEDICINE,FP10  GENERAL MEDICINE,13/02/2023,FP10S,SPECIALTY MEDICINE CARE GROUP,PRESCRIPTION PRICING AUTHORITY,0015021296,"1,830.04"
PUBLIC HEALTH TRAINEES,PUBLIC HEALTH TRAINEES,27/02/2023,SPECIALISED REGISTRARS,HR & TRAINING,ST HELENS&KNOWSLEY TEACHING HOSPITALS,0015021297,"-31,386.77"
GENERAL SURGERY SNR MED STAFF,GENERAL SURG CG MEDICAL STAFF,22/02/2023,MED & SURG EQUIPMENT,GENERAL SURGERY CARE GROUP,SANDWELL AND WEST BIRMINGHAM HOSP TRST,0015021312,"29,160.00"
PUBLIC HEALTH TRAINEES,PUBLIC HEALTH TRAINEES,27/02/2023,SPECIALISED REGISTRARS,HR & TRAINING,ST HELENS&KNOWSLEY TEACHING HOSPITALS,0015021326,"75,000.00"
TRUSTWIDE,TRUSTWIDE,13/02/2023,UNITARY PAYMENT,TRUSTWIDE,THE WALSALL HOSPITAL CO PLC,0020080103,"2,160,000.00"
IMAGING DEPARTMENT,IMAGING DEPARTMENT,13/02/2023,SOFTWARE MAINTENANCE,CLINICAL SUPPORT SERVICES,CLINISYS SOLUTIONS LTD,0020080150,"143,251.24"
TRUSTWIDE,TRUSTWIDE,01/02/2023,CREDITORS - TRADE,TRUSTWIDE,NHS SUPPLY CHAIN CONSUMABLES,0020080151,"134,473.71"
TRUSTWIDE,TRUSTWIDE,01/02/2023,CREDITORS - TRADE,TRUSTWIDE,NHS SUPPLY CHAIN CONSUMABLES,0020080152,"137,588.49"
TRUSTWIDE,TRUSTWIDE,01/02/2023,CREDITORS - TRADE,TRUSTWIDE,NHS SUPPLY CHAIN CONSUMABLES,0020080153,"118,260.37"
TRUSTWIDE,TRUSTWIDE,01/02/2023,CREDITORS - TRADE,TRUSTWIDE,NHS SUPPLY CHAIN CONSUMABLES,0020080154,"121,394.46"
STAFF FLOW,STAFF FLOW,02/02/2023,AGENCY OTHER CAREER GRADES,FINANCE DIRECTOR,LIAISON PAYROLL,0020080163,"106,399.55"
STAFF FLOW,STAFF FLOW,02/02/2023,AGENCY OTHER CAREER GRADES,FINANCE DIRECTOR,LIAISON PAYROLL,0020080171,"170,486.76"
MINOR WORKS,MINOR WORKS,08/02/2023,UNITARY PAYMENT,ESTATES MANAGEMENT,THE WALSALL HOSPITAL CO PLC,0020080303,"38,698.76"
MORTUARY,MORTUARY,13/02/2023,EXP INTRASYS TRUST P2P,CLINICAL SUPPORT SERVICES,ROYAL WOLVERHAMPTON PATHOLOGY,0020080308,"766,950.00"
STAFF FLOW,STAFF FLOW,09/02/2023,AGENCY OTHER CAREER GRADES,FINANCE DIRECTOR,LIAISON PAYROLL,0020080318,"208,660.63"
ENDOSCOPY UNIT,ENDOSCOPY UNIT,15/02/2023,MED & SURG DISPOSABLES,GASTRO CARE GROUP,KEYMED (MED & IND EQUIP) LTD,0020080483,"187,929.55"
STAFF FLOW,STAFF FLOW,16/02/2023,AGENCY OTHER CAREER GRADES,FINANCE DIRECTOR,LIAISON PAYROLL,0020080531,"163,343.05"
TRUSTWIDE,TRUSTWIDE,20/02/2023,UNITARY PAYMENT,TRUSTWIDE,HOSPITAL CO UP,0020080548,"2,203,572.81"
MINOR WORKS,MINOR WORKS,27/02/2023,UNITARY PAYMENT,ESTATES MANAGEMENT,THE WALSALL HOSPITAL CO PLC,0020080576,"26,572.50"
TRUSTWIDE,TRUSTWIDE,27/02/2023,CREDITORS - TRADE,TRUSTWIDE,NHS SUPPLY CHAIN CONSUMABLES,0020080601,"104,895.76"
IMAGING DEPARTMENT,IMAGING DEPARTMENT,15/02/2023,MRI SCANS,CLINICAL SUPPORT SERVICES,LISTER INHEALTH,0050109249,"163,365.86"
IMAGING DEPARTMENT,IMAGING DEPARTMENT,20/02/2023,MRI SCANS,CLINICAL SUPPORT SERVICES,LISTER INHEALTH,0050109250,"135,304.50"
EPR PROJECT,EPR PROJECT,01/02/2023,EXTERNAL CONSULTANCY (NON-PFI),INFORMATION DIRECTOR,SYSTEM C HEALTHCARE LTD,0050109332,"148,235.29"
BLOOD SCIENCES,BLOOD SCIENCES,22/02/2023,LABORATORY EQUIPMENT - PURCH,CLINICAL SUPPORT SERVICES,CHIRUS LIMITED,0050109513,"30,069.96"
STAFF FLOW,STAFF FLOW,09/02/2023,AGENCY OTHER CAREER GRADES,FINANCE DIRECTOR,LIAISON PAYROLL,0050109557,"110,835.61"
LAUNDRY SERVICES,LAUNDRY SERVICES,20/02/2023,OTHER GENERAL SUPPLIES & SERV,FACILITIES,BERENDSEN UK LTD,0050109597,"84,129.17"
SECURITY SERVICES,SECURITY SERVICES,20/02/2023,SECURITY CONTRACTS,FACILITIES,APCOA PARKING UK LTD,0050109599,"53,271.60"
IMAGING DEPARTMENT,IMAGING DEPARTMENT,27/02/2023,MRI SCANS,CLINICAL SUPPORT SERVICES,LISTER INHEALTH,0050109666,"43,700.98"
IMAGING DEPARTMENT,IMAGING DEPARTMENT,27/02/2023,MRI SCANS,CLINICAL SUPPORT SERVICES,LISTER INHEALTH,0050109667,"158,052.95"
PHARMACY DEPARTMENT,PHARMACY DEPARTMENT,15/02/2023,DRUG ISSUES,LIFESTYLES AND DISCH SUPT,BECTON DICKINSON DISPENSING UK LTD,0050109696,"33,578.98"
TRUSTWIDE,TRUSTWIDE,15/02/2023,CREDITORS - TRADE,TRUSTWIDE,HEALTHCARE AT HOME LTD,0050109734,"26,976.62"
CAP A&E BUILD,CAP A&E BUILD,16/02/2023,PURCHASE OF TANGIBLE ASSET,CAPITAL,TILBURY DOUGLAS CONSTRUCTION LTD,0050109788,"750,363.38"
STAFF FLOW,STAFF FLOW,16/02/2023,AGENCY OTHER CAREER GRADES,FINANCE DIRECTOR,LIAISON PAYROLL,0050109789,"126,771.34"
MINOR WORKS,MINOR WORKS,27/02/2023,UNITARY PAYMENT,ESTATES MANAGEMENT,THE WALSALL HOSPITAL CO PLC,0050109794,"47,877.73"
MINOR WORKS,MINOR WORKS,27/02/2023,UNITARY PAYMENT,ESTATES MANAGEMENT,THE WALSALL HOSPITAL CO PLC,0050109797,"27,620.56"
STAFF FLOW,STAFF FLOW,23/02/2023,AGENCY OTHER CAREER GRADES,FINANCE DIRECTOR,LIAISON PAYROLL,0050109834,"115,976.32"
CMU CARDIOLOGY,CMU CARDIOLOGY,20/02/2023,PROSTHESIS - PACEMAKERS,CLINICAL SUPPORT SERVICES,MEDTRONIC LTD,0065000102,"25,920.00"
CAPITAL COMPUTER REPLACEMENT,CAPITAL COMPUTER REPLACEMENT,27/02/2023,PURCHASE OF TANGIBLE ASSET,CAPITAL,SWITCHSHOP LIMITED,0065000208,"44,303.47"
STAFF FLOW,STAFF FLOW,23/02/2023,AGENCY OTHER CAREER GRADES,FINANCE DIRECTOR,LIAISON PAYROLL,0065000231,"184,339.53"
TRUSTWIDE,TRUSTWIDE,08/02/2023,CREDITORS - TRADE,TRUSTWIDE,BRISTOL MYERS SQUIBB PHARM LTD,0090338813,"33,169.44"
TRUSTWIDE,TRUSTWIDE,22/02/2023,CREDITORS - TRADE,TRUSTWIDE,JANSSEN-CILAG LTD,0090340039,"28,206.00"
TRUSTWIDE,TRUSTWIDE,27/02/2023,CREDITORS - TRADE,TRUSTWIDE,BRISTOL MYERS SQUIBB PHARM LTD,0090340383,"33,169.44"
TRUSTWIDE,TRUSTWIDE,27/02/2023,CREDITORS - TRADE,TRUSTWIDE,QUANTUM PHARMACEUTICAL,0090340802,"57,581.64"
